Workbook

Sheet Sheet1
B1: Euler's Method
C2: y' = f(x, y)
B4: This graphing utility illustrates
B5: Euler's Method to approximate the solution
B6: of any first order differential equation
D7: y' = f(x, y)
B8: with initial conditions x0 and y0
B9: extending from x = a to x = b.
A11: Enter the function in terms of both x and y:
E12: f(x, y) = | F12: x*sin(y)
A14: Now enter the initial conditions:
B15: The initial value x0 of x is | E15: 1
B16: The initial value y0 of y is | E16: 5
A18: To what value of x should the solutions extend? | J18: The solution of the D.E. y' = | M18: =F12 -> x*sin(y)
C19: xMax = | D19: 8
I20: Now select all the Euler approximations you want to see
J22: TRUE
J24: TRUE
A25: Click each item below for suggestions and investigations
B26: Item 1 | J26: TRUE
B27: Item 2
B28: Item 3
B29: Item 4 | J29: FALSE
A32: To access/download all the DIGMath Apps for Calculus | J32: FALSE
A33: Click this link: | C33: DIGMath for Calculus
J34: FALSE
A35: Created by: Sheldon P. Gordon
A36: Farmingdale State College
A37: Development of this module was supported by the
A38: NSF's Division of Undergraduate Education
A39: under grants DUE-0310123 and DUE-0442160.

Sheet Sheet2
C1: x | D1: y | E1: y' = f(x,y) | F1: y
H2: =Sheet1!#REF! -> 
C3: =x0 -> 1 | D3: =y0 -> 5 | E3: =x*SIN(y) -> -0.9589242747 | F3: =y0 -> 5 | J3: Note: 2-D data table is full array
A4: delta x = | B4: =(b-a)/257 -> 0.02723735409 | C4: =C3+dx -> 1.027237354 | D4: =F4 -> 4.97388144 | E4: -0.9923166459 | F4: =F3+E3*dx -> 4.97388144
C5: 1.054474708 | D5: =F5 -> 4.94685336 | E5: -1.025623138 | F5: 4.94685336 | I5: xMin = | J5: =x0 -> 1
C6: 1.081712062 | D6: 4.9189181 | E6: -1.058724125 | F6: 4.9189181
C7: 1.108949416 | D7: 4.890081256 | E7: -1.091488147 | F7: 4.890081256
C8: 1.13618677 | D8: 4.860352007 | E8: -1.123772144 | F8: 4.860352007
C9: 1.163424125 | D9: 4.829743427 | E9: -1.155421938 | F9: 4.829743427
C10: 1.190661479 | D10: 4.79827279 | E10: -1.186273 | F10: 4.79827279
C11: 1.217898833 | D11: 4.765961853 | E11: -1.216151534 | F11: 4.765961853
C12: 1.245136187 | D12: 4.732837103 | E12: -1.244875884 | F12: 4.732837103
C13: 1.272373541 | D13: 4.698929977 | E13: -1.272258301 | F13: 4.698929977
C14: 1.299610895 | D14: 4.664277028 | E14: -1.298107041 | F14: 4.664277028
C15: 1.326848249 | D15: 4.628920026 | E15: -1.322228812 | F15: 4.628920026
C16: 1.354085603 | D16: 4.592906012 | E16: -1.344431512 | F16: 4.592906012
C17: 1.381322957 | D17: 4.556287255 | E17: -1.36452724 | F17: 4.556287255
C18: 1.408560311 | D18: 4.519121143 | E18: -1.3823355 | F18: 4.519121143
C19: 1.435797665 | D19: 4.481469982 | E19: -1.397686531 | F19: 4.481469982
C20: 1.463035019 | D20: 4.443400699 | E20: -1.410424661 | F20: 4.443400699
C21: 1.490272374 | D21: 4.404984463 | E21: -1.420411587 | F21: 4.404984463
C22: 1.517509728 | D22: 4.36629621 | E22: -1.427529473 | F22: 4.36629621
C23: 1.544747082 | D23: 4.327414084 | E23: -1.431683737 | F23: 4.327414084
C24: 1.571984436 | D24: 4.288418807 | E24: -1.432805443 | F24: 4.288418807
C25: 1.59922179 | D25: 4.249392978 | E25: -1.430853174 | F25: 4.249392978
C26: 1.626459144 | D26: 4.210420323 | E26: -1.425814325 | F26: 4.210420323
C27: 1.653696498 | D27: 4.171584914 | E27: -1.417705747 | F27: 4.171584914
C28: 1.680933852 | D28: 4.13297036 | E28: -1.406573709 | F28: 4.13297036
C29: 1.708171206 | D29: 4.094659014 | E29: -1.392493187 | F29: 4.094659014
C30: 1.73540856 | D30: 4.056731184 | E30: -1.375566483 | F30: 4.056731184
C31: 1.762645914 | D31: 4.019264393 | E31: -1.355921252 | F31: 4.019264393
C32: 1.789883268 | D32: 3.982332686 | E32: -1.333707998 | F32: 3.982332686
C33: 1.817120623 | D33: 3.946006009 | E33: -1.309097141 | F33: 3.946006009
C34: 1.844357977 | D34: 3.910349666 | E34: -1.282275769 | F34: 3.910349666
C35: 1.871595331 | D35: 3.875423867 | E35: -1.253444181 | F35: 3.875423867
C36: 1.898832685 | D36: 3.841283364 | E36: -1.222812359 | F36: 3.841283364
C37: 1.926070039 | D37: 3.807977191 | E37: -1.190596451 | F37: 3.807977191
C38: 1.953307393 | D38: 3.775548494 | E38: -1.157015397 | F38: 3.775548494
C39: 1.980544747 | D39: 3.744034456 | E39: -1.122287751 | F39: 3.744034456
C40: 2.007782101 | D40: 3.713466307 | E40: -1.086628802 | F40: 3.713466307
C41: 2.035019455 | D41: 3.683869413 | E41: -1.05024801 | F41: 3.683869413
C42: 2.062256809 | D42: 3.655263436 | E42: -1.013346814 | F42: 3.655263436
C43: 2.089494163 | D43: 3.62766255 | E43: -0.9761168172 | F43: 3.62766255
C44: 2.116731518 | D44: 3.601075711 | E44: -0.9387383384 | F44: 3.601075711
C45: 2.143968872 | D45: 3.575506963 | E45: -0.9013793403 | F45: 3.575506963
C46: 2.171206226 | D46: 3.550955774 | E46: -0.8641946878 | F46: 3.550955774
C47: 2.19844358 | D47: 3.527417398 | E47: -0.8273257195 | F47: 3.527417398
C48: 2.225680934 | D48: 3.504883234 | E48: -0.7909000917 | F48: 3.504883234
C49: 2.252918288 | D49: 3.483341208 | E49: -0.7550318594 | F49: 3.483341208
C50: 2.280155642 | D50: 3.462776138 | E50: -0.7198217542 | F50: 3.462776138
C51: 2.307392996 | D51: 3.443170098 | E51: -0.6853576241 | F51: 3.443170098
C52: 2.33463035 | D52: 3.42450277 | E52: -0.6517149979 | F52: 3.42450277
C53: 2.361867704 | D53: 3.406751778 | E53: -0.6189577447 | F53: 3.406751778
C54: 2.389105058 | D54: 3.389893006 | E54: -0.5871387982 | F54: 3.389893006
C55: 2.416342412 | D55: 3.373900899 | E55: -0.5563009222 | F55: 3.373900899
C56: 2.443579767 | D56: 3.358748734 | E56: -0.5264774963 | F56: 3.358748734
C57: 2.470817121 | D57: 3.34440888 | E57: -0.497693304 | F57: 3.34440888
C58: 2.498054475 | D58: 3.330853031 | E58: -0.4699653108 | F58: 3.330853031
C59: 2.525291829 | D59: 3.31805242 | E59: -0.4433034193 | F59: 3.31805242
C60: 2.552529183 | D60: 3.305978007 | E60: -0.4177111949 | F60: 3.305978007
C61: 2.579766537 | D61: 3.29460066 | E61: -0.3931865552 | F61: 3.29460066
C62: 2.607003891 | D62: 3.283891298 | E62: -0.3697224205 | F62: 3.283891298
C63: 2.634241245 | D63: 3.273821038 | E63: -0.3473073214 | F63: 3.273821038
C64: 2.661478599 | D64: 3.264361305 | E64: -0.3259259633 | F64: 3.264361305
C65: 2.688715953 | D65: 3.255483944 | E65: -0.3055597486 | F65: 3.255483944
C66: 2.715953307 | D66: 3.247161305 | E66: -0.2861872563 | F66: 3.247161305
C67: 2.743190661 | D67: 3.239366322 | E67: =x*SIN(y) -> -0.2677846804 | F67: 3.239366322
C68: =C67+dx -> 2.770428016 | D68: 3.232072575 | E68: -0.2503262298 | F68: =F67+E67*dx -> 3.232072575
C69: 2.79766537 | D69: =F69 -> 3.225254351 | E69: -0.2337844912 | F69: 3.225254351
C70: 2.824902724 | D70: 3.21888668 | E70: -0.2181307564 | F70: 3.21888668
C71: 2.852140078 | D71: 3.212945376 | E71: -0.2033353187 | F71: 3.212945376
C72: 2.879377432 | D72: 3.20740706 | E72: -0.1893677375 | F72: 3.20740706
C73: 2.906614786 | D73: 3.202249184 | E73: -0.1761970759 | F73: 3.202249184
C74: 2.93385214 | D74: 3.197450041 | E74: -0.1637921125 | F74: 3.197450041
C75: 2.961089494 | D75: 3.192988778 | E75: -0.1521215292 | F75: 3.192988778
C76: 2.988326848 | D76: 3.18884539 | E76: -0.1411540775 | F76: 3.18884539
C77: 3.015564202 | D77: 3.185000726 | E77: -0.1308587251 | F77: 3.185000726
C78: 3.042801556 | D78: 3.181436481 | E78: -0.1212047836 | F78: 3.181436481
C79: 3.070038911 | D79: 3.178135183 | E79: -0.1121620207 | F79: 3.178135183
C80: 3.097276265 | D80: 3.175080186 | E80: -0.1037007559 | F80: 3.175080186
C81: 3.124513619 | D81: 3.172255652 | E81: -0.09579194403 | F81: 3.172255652
C82: 3.151750973 | D82: 3.169646533 | E82: -0.08840724443 | F82: 3.169646533
C83: 3.178988327 | D83: 3.167238554 | E83: -0.08151908015 | F83: 3.167238554
C84: 3.206225681 | D84: 3.16501819 | E84: -0.07510068598 | F84: 3.16501819
C85: 3.233463035 | D85: 3.162972646 | E85: -0.06912614727 | F85: 3.162972646
C86: 3.260700389 | D86: 3.161089832 | E86: -0.06357043026 | F86: 3.161089832
C87: 3.287937743 | D87: 3.159358342 | E87: -0.0584094046 | F87: 3.159358342
C88: 3.315175097 | D88: 3.157767424 | E88: -0.05361985895 | F88: 3.157767424
C89: 3.342412451 | D89: 3.156306961 | E89: -0.04917951032 | F89: 3.156306961
C90: 3.369649805 | D90: 3.154967441 | E90: -0.04506700774 | F90: 3.154967441
C91: 3.39688716 | D91: 3.153739935 | E91: -0.04126193095 | F91: 3.153739935
C92: 3.424124514 | D92: 3.15261607 | E92: -0.03774478457 | F92: 3.15261607
C93: 3.451361868 | D93: 3.151588002 | E93: -0.03449698836 | F93: 3.151588002
C94: 3.478599222 | D94: 3.150648395 | E94: -0.03150086398 | F94: 3.150648395
C95: 3.505836576 | D95: 3.149790395 | E95: -0.02873961862 | F95: 3.149790395
C96: 3.53307393 | D96: 3.149007604 | E96: -0.02619732617 | F96: 3.149007604
C97: 3.560311284 | D97: 3.148294058 | E97: -0.02385890593 | F97: 3.148294058
C98: 3.587548638 | D98: 3.147644204 | E98: -0.02171009959 | F98: 3.147644204
C99: 3.614785992 | D99: 3.147052879 | E99: -0.0197374465 | F99: 3.147052879
C100: 3.642023346 | D100: 3.146515283 | E100: -0.01792825772 | F100: 3.146515283
C101: 3.6692607 | D101: 3.146026964 | E101: -0.01627058904 | F101: 3.146026964
C102: 3.696498054 | D102: 3.145583797 | E102: -0.0147532132 | F102: 3.145583797
C103: 3.723735409 | D103: 3.145181958 | E103: -0.01336559162 | F103: 3.145181958
C104: 3.750972763 | D104: 3.144817915 | E104: -0.01209784581 | F104: 3.144817915
C105: 3.778210117 | D105: 3.144488401 | E105: -0.01094072855 | F105: 3.144488401
C106: 3.805447471 | D106: 3.144190405 | E106: -0.009885595214 | F106: 3.144190405
C107: 3.832684825 | D107: 3.143921147 | E107: -0.008924375171 | F107: 3.143921147
C108: 3.859922179 | D108: 3.143678071 | E108: -0.008049543556 | F108: 3.143678071
C109: 3.887159533 | D109: 3.143458823 | E109: -0.00725409344 | F109: 3.143458823
C110: 3.914396887 | D110: 3.143261241 | E110: -0.006531508548 | F110: 3.143261241
C111: 3.941634241 | D111: 3.14308334 | E111: -0.005875736579 | F111: 3.14308334
C112: 3.968871595 | D112: 3.1429233 | E112: -0.005281163242 | F112: 3.1429233
C113: 3.996108949 | D113: 3.142779455 | E113: -0.00474258703 | F113: 3.142779455
C114: 4.023346304 | D114: 3.14265028 | E114: -0.004255194823 | F114: 3.14265028
C115: 4.050583658 | D115: 3.142534379 | E115: -0.003814538335 | F115: 3.142534379
C116: 4.077821012 | D116: 3.142430481 | E116: -0.00341651145 | F116: 3.142430481
C117: 4.105058366 | D117: 3.142337425 | E117: -0.003057328463 | F117: 3.142337425
C118: 4.13229572 | D118: 3.142254151 | E118: -0.002733503255 | F118: 3.142254151
C119: 4.159533074 | D119: 3.142179698 | E119: -0.002441829394 | F119: 3.142179698
C120: 4.186770428 | D120: 3.142113189 | E120: -0.002179361169 | F120: 3.142113189
C121: 4.214007782 | D121: 3.142053829 | E121: -0.001943395563 | F121: 3.142053829
C122: 4.241245136 | D122: 3.142000896 | E122: -0.001731455144 | F122: 3.142000896
C123: 4.26848249 | D123: 3.141953736 | E123: -0.001541271865 | F123: 3.141953736
C124: 4.295719844 | D124: 3.141911755 | E124: -0.001370771753 | F124: 3.141911755
C125: 4.322957198 | D125: 3.141874419 | E125: -0.001218060473 | F125: 3.141874419
C126: 4.350194553 | D126: 3.141841242 | E126: -0.001081409733 | F126: 3.141841242
C127: 4.377431907 | D127: 3.141811788 | E127: -0.0009592445207 | F127: 3.141811788
C128: 4.404669261 | D128: 3.14178566 | E128: -0.0008501311169 | F128: 3.14178566
C129: 4.431906615 | D129: 3.141762505 | E129: -0.0007527658873 | F129: 3.141762505
C130: 4.459143969 | D130: 3.141742002 | E130: -0.0006659647993 | F130: 3.141742002
C131: 4.486381323 | D131: 3.141723863 | E131: =x*SIN(y) -> -0.000588653643 | F131: 3.141723863
C132: =C131+dx -> 4.513618677 | D132: 3.141707829 | E132: -0.0005198589218 | F132: =F131+E131*dx -> 3.141707829
C133: 4.540856031 | D133: =F133 -> 3.14169367 | E133: -0.0004586993807 | F133: 3.14169367
C134: 4.568093385 | D134: 3.141681176 | E134: -0.0004043781404 | F134: 3.141681176
C135: 4.595330739 | D135: 3.141670162 | E135: -0.0003561754052 | F135: 3.141670162
C136: 4.622568093 | D136: 3.14166046 | E136: -0.000313441714 | F136: 3.14166046
C137: 4.649805447 | D137: 3.141651923 | E137: -0.0002755917021 | F137: 3.141651923
C138: 4.677042802 | D138: 3.141644417 | E138: -0.0002420983453 | F138: 3.141644417
C139: 4.704280156 | D139: 3.141637823 | E139: -0.0002124876557 | F139: 3.141637823
C140: 4.73151751 | D140: 3.141632035 | E140: -0.000186333802 | F140: 3.141632035
C141: 4.758754864 | D141: 3.14162696 | E141: -0.0001632546255 | F141: 3.14162696
C142: 4.785992218 | D142: 3.141622513 | E142: -0.0001429075266 | F142: 3.141622513
C143: 4.813229572 | D143: 3.141618621 | E143: -0.0001249856964 | F143: 3.141618621
C144: 4.840466926 | D144: 3.141615216 | E144: -0.0001092146689 | F144: 3.141615216
C145: 4.86770428 | D145: 3.141612242 | E145: -9.534917036e-05 | F145: 3.141612242
C146: 4.894941634 | D146: 3.141609645 | E146: -8.31702461e-05 | F146: 3.141609645
C147: 4.922178988 | D147: 3.141607379 | E147: -7.248264125e-05 | F147: 3.141607379
C148: 4.949416342 | D148: 3.141605405 | E148: -6.311241819e-05 | F148: 3.141605405
C149: 4.976653696 | D149: 3.141603686 | E149: -5.49047912e-05 | F149: 3.141603686
C150: 5.003891051 | D150: 3.141602191 | E150: -4.772216143e-05 | F150: 3.141602191
C151: 5.031128405 | D151: 3.141600891 | E151: -4.144233583e-05 | F151: 3.141600891
C152: 5.058365759 | D152: 3.141599762 | E152: -3.595691501e-05 | F152: 3.141599762
C153: 5.085603113 | D153: 3.141598783 | E153: -3.116983581e-05 | F153: 3.141598783
C154: 5.112840467 | D154: 3.141597934 | E154: -2.699605548e-05 | F154: 3.141597934
C155: 5.140077821 | D155: 3.141597198 | E155: -2.336036509e-05 | F155: 3.141597198
C156: 5.167315175 | D156: 3.141596562 | E156: -2.019632097e-05 | F156: 3.141596562
C157: 5.194552529 | D157: 3.141596012 | E157: -1.744528351e-05 | F157: 3.141596012
C158: 5.221789883 | D158: 3.141595537 | E158: -1.505555366e-05 | F158: 3.141595537
C159: 5.249027237 | D159: 3.141595127 | E159: -1.298159818e-05 | F159: 3.141595127
C160: 5.276264591 | D160: 3.141594773 | E160: -1.118335529e-05 | F160: 3.141594773
C161: 5.303501946 | D161: 3.141594469 | E161: -9.625613221e-06 | F161: 3.141594469
C162: 5.3307393 | D162: 3.141594206 | E162: -8.27745461e-06 | F162: 3.141594206
C163: 5.357976654 | D163: 3.141593981 | E163: -7.111760391e-06 | F163: 3.141593981
C164: 5.385214008 | D164: 3.141593787 | E164: -6.104767365e-06 | F164: 3.141593787
C165: 5.412451362 | D165: 3.141593621 | E165: -5.235674059e-06 | F165: 3.141593621
C166: 5.439688716 | D166: 3.141593478 | E166: -4.486290057e-06 | F166: 3.141593478
C167: 5.46692607 | D167: 3.141593356 | E167: -3.840724366e-06 | F167: 3.141593356
C168: 5.494163424 | D168: 3.141593252 | E168: -3.285108787e-06 | F168: 3.141593252
C169: 5.521400778 | D169: 3.141593162 | E169: -2.807352654e-06 | F169: 3.141593162
C170: 5.548638132 | D170: 3.141593086 | E170: -2.39692564e-06 | F170: 3.141593086
C171: 5.575875486 | D171: 3.14159302 | E171: -2.044665637e-06 | F171: 3.14159302
C172: 5.60311284 | D172: 3.141592965 | E172: -1.742609e-06 | F172: 3.141592965
C173: 5.630350195 | D173: 3.141592917 | E173: -1.483840745e-06 | F173: 3.141592917
C174: 5.657587549 | D174: 3.141592877 | E174: -1.262362496e-06 | F174: 3.141592877
C175: 5.684824903 | D175: 3.141592842 | E175: -1.072976204e-06 | F175: 3.141592842
C176: 5.712062257 | D176: 3.141592813 | E176: -9.111818839e-07 | F176: 3.141592813
C177: 5.739299611 | D177: 3.141592788 | E177: -7.730877657e-07 | F177: 3.141592788
C178: 5.766536965 | D178: 3.141592767 | E178: -6.553314656e-07 | F178: 3.141592767
C179: 5.793774319 | D179: 3.141592749 | E179: -5.550108764e-07 | F179: 3.141592749
C180: 5.821011673 | D180: 3.141592734 | E180: -4.696236669e-07 | F180: 3.141592734
C181: 5.848249027 | D181: 3.141592721 | E181: -3.970143596e-07 | F181: 3.141592721
C182: 5.875486381 | D182: 3.141592711 | E182: -3.353281143e-07 | F182: 3.141592711
C183: 5.902723735 | D183: 3.141592702 | E183: -2.829703808e-07 | F183: 3.141592702
C184: 5.929961089 | D184: 3.141592694 | E184: -2.385717392e-07 | F184: 3.141592694
C185: 5.957198444 | D185: 3.141592687 | E185: -2.009572905e-07 | F185: 3.141592687
C186: 5.984435798 | D186: 3.141592682 | E186: -1.691200254e-07 | F186: 3.141592682
C187: 6.011673152 | D187: 3.141592677 | E187: -1.421976898e-07 | F187: 3.141592677
C188: 6.038910506 | D188: 3.141592673 | E188: -1.194527135e-07 | F188: 3.141592673
C189: 6.06614786 | D189: 3.14159267 | E189: -1.002548087e-07 | F189: 3.14159267
C190: 6.093385214 | D190: 3.141592667 | E190: -8.40658997e-08 | F190: 3.141592667
C191: 6.120622568 | D191: 3.141592665 | E191: -7.042708266e-08 | F191: 3.141592665
C192: 6.147859922 | D192: 3.141592663 | E192: -5.894737396e-08 | F192: 3.141592663
C193: 6.175097276 | D193: 3.141592662 | E193: -4.929398016e-08 | F193: 3.141592662
C194: 6.20233463 | D194: 3.14159266 | E194: -4.118392051e-08 | F194: 3.14159266
C195: 6.229571984 | D195: 3.141592659 | E195: =x*SIN(y) -> -3.437681255e-08 | F195: 3.141592659
C196: =C195+dx -> 6.256809339 | D196: 3.141592658 | E196: -2.866865865e-08 | F196: =F195+E195*dx -> 3.141592658
C197: 6.284046693 | D197: =F197 -> 3.141592657 | E197: -2.388650882e-08 | F197: 3.141592657
C198: 6.311284047 | D198: 3.141592657 | E198: -1.988388652e-08 | F198: 3.141592657
C199: 6.338521401 | D199: 3.141592656 | E199: -1.653685332e-08 | F199: 3.141592656
C200: 6.365758755 | D200: 3.141592656 | E200: -1.374064809e-08 | F200: 3.141592656
... 318 more rows

Sheet Defining Function
A1: Defining a Function in Excel
A3: Computers have very specific rules you must follow when defining a function. If you don't, the program will either not work at all or will work incorrectly.
A5: 1. The Variable used should be the one named in the instruction, usually x, though sometimes y, t, Q (for an angle theta),
A6: or even x and y (for a function of two variables).
A8: 2. Order of Operations: There five arithmetic operations, addition (+), subtraction (-), multiplication (*), division (/), and exponentiation or power (^). When computers see any of these operation symbols, they perform the indicated steps in a very particular order. First, the power is done. Second, products and quotients of adjacent terms is done. Third, and last, sums and differences of adjacent terms are done. So, in 10*x^3 + 5*x – 7, say with x = 2, the first pass only calculates 2^3 and ignores the multiplications and the sums and differences to calculate 2^3 = 8. The second pass looks at 10*8 + 5*2 – 7 and only does the multiplications, so it produces 80 + 10 - 7. The third pass looks at the +’s and –‘s to produce 80 + 10 – 7 = 83.
A10: 3. Parentheses If you need an operation involving more than two adjacent terms, as in Ö4^3 + 6^2, the computer would take the square root of 4 to produce 2^3 + 6^2; it would then cube the 2 and square the 6 to produce 8 + 36; and finally it would add the 8 and the 36 to get 44. If you actually wanted the square root of the entire expression, you would need to use parentheses, as in Ö(4^3 + 6^2) to tell the computer to do all the operations inside the parentheses before taking the square root. Therefore, it would calculate (4^3 + 6^2) = 64 + 36 = 100 and then take the square root of Ö100 = 10.
A12: 4. Built-In Functions Computer programs have built-in functions for most common algebraic functions. In Excel, the square root function is denoted by SQRT(…), so SQRT(100) = 10. Alternatively, you could enter it as 100^.5 or 100^(1/2); notice that parentheses are needed to have the ½ done first. The common trig functions are SIN (…), COS (…), and TAN (…), where the arguments are automatically interpreted as being in radians, not degrees. The logarithm to the base 10 is represented by LOG (…) and the logarithm with the base e, known as the natural logarithm, is LN (…). The corresponding exponential function with base e is EXP (x). If x is the variable, then each of these would be SQRT (x), SIN (x), COS (x), TAN (x), LOG (x) (for log with base 10 ), LN (x) (for log with base e ), and EXP (x).

Sheet Sheet3
